fUST/lending_fUST_20241115
["ID","MTS","AMOUNT","RATE_DAILY","PERIOD"]
[342227006,1731600642762,-500.0,0.00017808,2]
[342227007,1731600642773,-1546.17,0.00017808,2]
[342227008,1731600642783,-1291.87,0.00017808,2]
[342227009,1731600642795,-500.0,0.00017808,2]
[342227010,1731600642805,-500.0,0.00017808,2]
[342227011,1731600642815,-576.85,0.00017808,2]
[342227012,1731600642825,-500.0,0.00017808,2]
[342227013,1731600642836,-714.42,0.00017808,2]
[342227014,1731600642847,-688.63,0.00017808,2]
[342227015,1731600642857,-729.16,0.00017808,2]
[342227016,1731600642869,-823.71,0.00017808,2]
[342227017,1731600642879,-560.55,0.00017808,2]
[342227018,1731600642889,-500.0,0.00017808,2]
[342227019,1731600642900,-731.0,0.00017808,2]
[342227020,1731600642910,-500.0,0.00017808,2]
[342227021,1731600642921,-500.0,0.00017808,2]
[342227022,1731600642931,-2790.79,0.00017808,2]
[342227023,1731600642941,-500.0,0.00017808,2]
[342227024,1731600642952,-500.0,0.00017808,2]
[342227025,1731600642963,-2082.9,0.00017808,2]
[342227026,1731600642973,-462.40605079,0.00017808,2]
[342227027,1731600642983,-1188.51,0.00017808,2]
[342227028,1731600642994,-500.0,0.00017808,2]
[342227029,1731600643004,-617.01,0.00017808,2]
[342227030,1731600643014,-588.65,0.00017808,2]
[342227031,1731600643024,-539.72,0.00017808,2]
[342227032,1731600643037,-3464.23,0.00017808,2]
[342227034,1731600643048,-707.17,0.00017808,2]
[342227036,1731600643058,-500.0,0.00017808,2]
[342227038,1731600643068,-809.9,0.00017808,2]
[342227040,1731600643078,-500.0,0.00017808,2]
[342227041,1731600643088,-500.0,0.00017808,2]
[342227042,1731600643099,-6092.17,0.00017808,2]
[342227044,1731600643110,-500.54,0.00017808,2]
[342227046,1731600643121,-614.62,0.00017808,2]
[342227048,1731600643131,-4200.34,0.00017808,2]
[342227049,1731600643141,-500.0,0.00017808,2]
[342227050,1731600643151,-500.0,0.00017808,2]
[342227051,1731600643161,-622.48,0.00017808,2]
[342227052,1731600643171,-500.0,0.00017808,2]
[342227053,1731600643181,-500.0,0.00017808,2]
[342227054,1731600643190,-676.2,0.00017808,2]
[342227055,1731600643200,-500.0,0.00017808,2]
[342227056,1731600643211,-500.0,0.00017808,2]
[342227057,1731600643220,-500.0,0.00017808,2]
[342227058,1731600643232,-287.0544774,0.00017808,2]
[342227059,1731600643242,-539.4,0.00017808,2]
[342227060,1731600643252,-758.82,0.00017808,2]
[342227061,1731600643262,-4851.72,0.00017808,2]
[342227062,1731600643272,-936.05,0.00017808,2]
[342227063,1731600643283,-1000.0,0.00017855,2]
[342227064,1731600643292,-187.7,0.00018,2]
[342227065,1731600643302,-187.7,0.00018,2]
[342227066,1731600643312,-151.0,0.00018082,2]
[342227067,1731600643322,-151.0,0.00018082,2]
[342227068,1731600643332,-151.0,0.00018082,2]
[342227069,1731600643343,-151.0,0.00018082,2]
[342227070,1731600643352,-526.71,0.00018082,2]
[342227071,1731600643362,-500.0,0.00018082,2]
[342227072,1731600643374,-528.95,0.00018082,2]
[342227073,1731600643384,-500.0,0.00018082,2]
[342227074,1731600643394,-518.52,0.00018082,2]
[342227075,1731600643404,-500.0,0.00018082,2]
[342227076,1731600643413,-500.0,0.00018082,2]
[342227077,1731600643423,-500.0,0.00018082,2]
[342227078,1731600643434,-500.0,0.00018082,2]
[342227079,1731600643443,-504.45,0.00018082,2]
[342227080,1731600643453,-519.99,0.00018082,2]
[342227081,1731600643463,-524.78,0.00018082,2]
[342227082,1731600643473,-514.28,0.00018082,2]
[342227083,1731600643484,-500.0,0.00018082,2]
[342227084,1731600643494,-500.0,0.00018082,2]
[342227085,1731600643504,-600.82,0.00018082,2]
[342227086,1731600643514,-553.76,0.00018082,2]
[342227087,1731600643524,-500.0,0.00018082,2]
[342227088,1731600643534,-727.47,0.00018082,2]
[342227089,1731600643544,-500.0,0.00018082,2]
[342227090,1731600643554,-500.0,0.00018082,2]
[342227091,1731600643563,-500.0,0.00018082,2]
[342227092,1731600643573,-500.0,0.00018082,2]
[342227093,1731600643583,-530.09,0.00018082,2]
[342227094,1731600643597,-500.0,0.00018082,2]
[342227095,1731600643606,-500.0,0.00018082,2]
[342227096,1731600643616,-500.0,0.00018082,2]
[342227097,1731600643626,-500.0,0.00018082,2]
[342227098,1731600643636,-500.0,0.00018082,2]
[342227099,1731600643646,-151.0,0.00018082,2]
[342227100,1731600643655,-500.0,0.00018082,2]
[342227101,1731600643665,-151.0,0.00018082,2]
[342227102,1731600643676,-500.0,0.00018082,2]
[342227103,1731600643686,-500.0,0.00018082,2]
[342227104,1731600643695,-584.2,0.00018082,2]
[342227105,1731600643704,-500.0,0.00018082,2]
[342227106,1731600643714,-500.0,0.00018082,2]
[342227107,1731600643724,-526.65520072,0.00018082,2]
[342227108,1731600643734,-534.43,0.00018082,2]
[342227109,1731600643743,-1550.66,0.00018082,2]
[342227110,1731600643753,-500.0,0.00018082,2]
[342227111,1731600643764,-581.14,0.00018082,2]
[342227112,1731600643774,-555.67,0.00018082,2]
[342227113,1731600643784,-500.0,0.00018082,2]
[342227114,1731600643795,-500.0,0.00018082,2]
[342227115,1731600643804,-593.92720145,0.00018082,2]
[342227116,1731600643814,-500.05,0.00018082,2]
[342227117,1731600643824,-718.72,0.00018082,2]
[342227118,1731600643834,-500.0,0.00018082,2]
[342227119,1731600643843,-707.27,0.00018082,2]
[342227120,1731600643853,-621.51,0.00018082,2]
[342227121,1731600643862,-1248.9,0.00018082,2]
[342227122,1731600643875,-1228.06,0.00018082,2]
[342227123,1731600643885,-500.0,0.00018082,2]
[342227124,1731600643896,-618.02,0.00018082,2]
[342227125,1731600643906,-500.0,0.00018082,2]
[342227126,1731600643916,-500.0,0.00018082,2]
[342227127,1731600643926,-500.0,0.00018082,2]
[342227128,1731600643936,-1051.3,0.00018082,2]
[342227129,1731600643946,-726.33,0.00018082,2]
[342227130,1731600643956,-869.66,0.00018082,2]
[342227131,1731600643967,-1536.98,0.00018082,2]
[342227132,1731600643976,-392.887161,0.00018082,2]
[342227133,1731600643987,-615.03,0.00018082,2]
[342227134,1731600643997,-392.887161,0.00018082,2]
[342227135,1731600644007,-691.63,0.00018082,2]
[342227136,1731600644017,-6820.13,0.00018082,2]
[342227137,1731600644027,-308.49223013,0.00018082,2]
[342227138,1731600644037,-500.0,0.00018082,2]
[342227139,1731600644047,-558.93,0.00018082,2]
[342227140,1731600644056,-551.7,0.00018082,2]
[342227141,1731600644066,-500.0,0.00018082,2]
[342227142,1731600644076,-18922.5,0.00018082,2]
[342227143,1731600644085,-500.0,0.00018082,2]
[342227144,1731600644095,-151.0,0.00018082,2]
[342227145,1731600644106,-500.0,0.00018082,2]
[342227146,1731600644117,-500.0,0.00018082,2]
[342227147,1731600644126,-151.0,0.00018082,2]
[342227148,1731600644136,-1302.21,0.00018082,2]
[342227149,1731600644146,-500.0,0.00018082,2]
[342227150,1731600644155,-605.56,0.00018082,2]
[342227151,1731600644164,-623.27555387,0.00018082,2]
[342227152,1731600644174,-1546.17,0.00018082,2]
[342227153,1731600644183,-321.499132,0.00018082,2]
[342227154,1731600644193,-321.499132,0.00018082,2]
[342227155,1731600644205,-1291.87,0.00018082,2]
[342227156,1731600644215,-500.0,0.00018082,2]
[342227157,1731600644224,-500.0,0.00018082,2]
[342227158,1731600644234,-151.0,0.00018082,2]
[342227159,1731600644244,-576.85,0.00018082,2]
[342227160,1731600644254,-269.28808901,0.00018082,2]
[342227161,1731600644264,-714.42,0.00018082,2]
[342227162,1731600644274,-688.63,0.00018082,2]
[342227163,1731600644285,-729.16,0.00018082,2]
[342227164,1731600644296,-823.71,0.00018082,2]
[342227165,1731600644307,-560.55,0.00018082,2]
[342227166,1731600644317,-500.0,0.00018082,2]
[342227167,1731600644327,-731.0,0.00018082,2]
[342227168,1731600644339,-500.0,0.00018082,2]
[342227169,1731600644349,-500.0,0.00018082,2]
[342227170,1731600644359,-2790.79,0.00018082,2]
[342227171,1731600644371,-500.0,0.00018082,2]
[342227172,1731600644382,-500.0,0.00018082,2]
[342227173,1731600644393,-2082.9,0.00018082,2]
[342227174,1731600644404,-1188.51,0.00018082,2]
[342227175,1731600644415,-500.0,0.00018082,2]
[342227176,1731600644425,-151.0,0.00018082,2]
[342227177,1731600644439,-151.0,0.00018082,2]
[342227178,1731600644448,-617.01,0.00018082,2]
[342227179,1731600644458,-588.65,0.00018082,2]
[342227180,1731600644467,-539.72,0.00018082,2]
[342227181,1731600644477,-3464.23,0.00018082,2]
[342227182,1731600644488,-539.004771,0.00018082,2]
[342227183,1731600644498,-707.17,0.00018082,2]
[342227184,1731600644508,-539.004771,0.00018082,2]
[342227185,1731600644518,-500.0,0.00018082,2]
[342227186,1731600644529,-809.9,0.00018082,2]
[342227187,1731600644538,-500.0,0.00018082,2]
[342227188,1731600644548,-151.0,0.00018082,2]
[342227189,1731600644557,-500.0,0.00018082,2]
[342227190,1731600644567,-1269.298562,0.00018082,2]
[342227191,1731600644577,-6092.17,0.00018082,2]
[342227192,1731600644589,-500.54,0.00018082,2]
[342227193,1731600644603,-1269.298562,0.00018082,2]
[342227194,1731600644612,-614.62,0.00018082,2]
[342227195,1731600644625,-4200.34,0.00018082,2]
[342227196,1731600644635,-500.0,0.00018082,2]
[342227197,1731600644645,-500.0,0.00018082,2]
[342227198,1731600644655,-622.48,0.00018082,2]
[342227199,1731600644664,-500.0,0.00018082,2]
[342227200,1731600644674,-500.0,0.00018082,2]
[342227201,1731600644684,-676.2,0.00018082,2]
[342227202,1731600644694,-267.18417885,0.00018082,2]
[342227203,1731600644703,-500.0,0.00018082,2]
[342227204,1731600644713,-500.0,0.00018082,2]
[342227205,1731600644723,-539.4,0.00018082,2]
[342227206,1731600644733,-758.82,0.00018082,2]
[342227207,1731600644743,-4851.72,0.00018082,2]
[342227208,1731600644752,-615.0,0.000181,2]
[342227209,1731600644762,-151.0,0.00018121,2]
[342227210,1731600644772,-723.1621,0.00018121,2]
[342227211,1731600644781,-723.1621,0.00018121,2]
[342227212,1731600644791,-752.400114,0.00018145,2]
[342227213,1731600644800,-484.23151623,0.00018254,2]
[342227214,1731600644810,-1324.25389581,0.00018322,2]
[342227215,1731600644820,-1522.43633114,0.00018322,2]
[342227216,1731600644830,-1500.0,0.00018322,2]
[342227217,1731600644841,-151.0,0.00018356,2]
[342227218,1731600644851,-151.0,0.00018356,2]
[342227219,1731600644860,-151.0,0.00018356,2]
[342227220,1731600644871,-151.0,0.00018356,2]
[342227221,1731600644881,-151.0,0.00018356,2]
[342227222,1731600644892,-151.0,0.00018356,2]
[342227223,1731600644902,-151.0,0.00018356,2]
[342227224,1731600644912,-186.73817,0.00018356,2]
[342227225,1731600644922,-186.73817,0.00018356,2]
[342227226,1731600644931,-151.0,0.00018356,2]
[342227227,1731600644941,-151.0,0.00018356,2]
[342227228,1731600644951,-526.71,0.00018356,2]
[342227229,1731600644961,-500.0,0.00018356,2]
[342227230,1731600644971,-528.95,0.00018356,2]
[342227231,1731600644980,-500.0,0.00018356,2]
[342227232,1731600644990,-518.52,0.00018356,2]
[342227233,1731600645000,-151.0,0.00018356,2]
[342227234,1731600645009,-500.0,0.00018356,2]
[342227235,1731600645019,-500.0,0.00018356,2]
[342227236,1731600645029,-500.0,0.00018356,2]
[342227237,1731600645039,-500.0,0.00018356,2]
[342227238,1731600645048,-504.45,0.00018356,2]
[342227239,1731600645058,-519.99,0.00018356,2]
[342227240,1731600645068,-151.0,0.00018356,2]
[342227241,1731600645079,-524.78,0.00018356,2]
[342227242,1731600645089,-514.28,0.00018356,2]
[342227243,1731600645098,-500.0,0.00018356,2]
[342227244,1731600645108,-310.39456735,0.00018356,2]
[342227245,1731600645169,-600.82,0.00018356,2]
[342227246,1731600645179,-553.76,0.00018356,2]
[342227247,1731600645190,-500.0,0.00018356,2]
[342227248,1731600645200,-727.47,0.00018356,2]
[342227249,1731600645210,-500.0,0.00018356,2]
[342227250,1731600645221,-500.0,0.00018356,2]
[342227251,1731600645231,-500.0,0.00018356,2]
[342227252,1731600645241,-500.0,0.00018356,2]
[342227253,1731600645250,-530.09,0.00018356,2]
[342227254,1731600645260,-151.0,0.00018356,2]
[342227255,1731600645270,-500.0,0.00018356,2]
[342227257,1731600645280,-535.82765914,0.00018356,2]
[342227259,1731600645289,-500.0,0.00018356,2]
[342227261,1731600645299,-151.0,0.00018356,2]
[342227263,1731600645309,-500.0,0.00018356,2]
[342227265,1731600645319,-500.0,0.00018356,2]
[342227266,1731600645329,-500.0,0.00018356,2]
[342227267,1731600645339,-500.0,0.00018356,2]
[342227268,1731600645349,-500.0,0.00018356,2]
[342227269,1731600645358,-584.2,0.00018356,2]
[342227270,1731600645369,-500.0,0.00018356,2]
[342227271,1731600645382,-500.0,0.00018356,2]
[342227272,1731600645392,-534.43,0.00018356,2]
[342227273,1731600645402,-1550.66,0.00018356,2]
[342227274,1731600645411,-500.0,0.00018356,2]
[342227275,1731600645421,-581.14,0.00018356,2]
[342227276,1731600645430,-555.67,0.00018356,2]
[342227277,1731600645439,-308.83607844,0.00018356,2]
[342227278,1731600645449,-500.0,0.00018356,2]
[342227279,1731600645458,-500.05,0.00018356,2]
[342227280,1731600645467,-718.72,0.00018356,2]
[342227281,1731600645477,-500.0,0.00018356,2]
[342227282,1731600645487,-707.27,0.00018356,2]
[342227283,1731600645497,-621.51,0.00018356,2]
[342227284,1731600645506,-1248.9,0.00018356,2]
[342227285,1731600645516,-1228.06,0.00018356,2]
[342227286,1731600645525,-500.0,0.00018356,2]
[342227287,1731600645535,-618.02,0.00018356,2]
[342227288,1731600645544,-500.0,0.00018356,2]
[342227289,1731600645553,-500.0,0.00018356,2]
[342227290,1731600645563,-500.0,0.00018356,2]
[342227291,1731600645572,-1051.3,0.00018356,2]
[342227292,1731600645582,-726.33,0.00018356,2]
[342227293,1731600645596,-2380.240832,0.00018356,2]
[342227294,1731600645606,-2380.240832,0.00018356,2]
[342227295,1731600645617,-869.66,0.00018356,2]
[342227296,1731600645635,-1536.98,0.00018356,2]
[342227297,1731600645644,-615.03,0.00018356,2]
[342227298,1731600645654,-691.63,0.00018356,2]
[342227299,1731600645664,-6820.13,0.00018356,2]
[342227300,1731600645677,-229.255726,0.00018356,2]
[342227301,1731600645687,-500.0,0.00018356,2]
[342227302,1731600645696,-558.93,0.00018356,2]
[342227303,1731600645706,-551.7,0.00018356,2]
[342227304,1731600645716,-500.0,0.00018356,2]
[342227305,1731600645725,-229.255726,0.00018356,2]
[342227306,1731600645735,-18922.5,0.00018356,2]
[342227307,1731600645744,-500.0,0.00018356,2]
[342227308,1731600645753,-500.0,0.00018356,2]
[342227309,1731600645763,-500.0,0.00018356,2]
[342227310,1731600645772,-1302.21,0.00018356,2]
[342227311,1731600645781,-383.978521,0.00018356,2]
[342227312,1731600645790,-383.978521,0.00018356,2]
[342227313,1731600645800,-341.50053988,0.00018356,2]
[342227314,1731600645809,-605.56,0.00018356,2]
[342227315,1731600645819,-1546.17,0.00018356,2]
[342227316,1731600645829,-294.497,0.00018356,2]
[342227317,1731600645839,-1291.87,0.00018356,2]
[342227318,1731600645848,-294.497,0.00018356,2]
[342227319,1731600645858,-500.0,0.00018356,2]
[342227320,1731600645872,-500.0,0.00018356,2]
[342227321,1731600645881,-576.85,0.00018356,2]
[342227322,1731600645892,-714.42,0.00018356,2]
[342227323,1731600645902,-688.63,0.00018356,2]
[342227324,1731600645912,-729.16,0.00018356,2]
[342227325,1731600645922,-823.71,0.00018356,2]
[342227326,1731600645932,-560.55,0.00018356,2]
[342227327,1731600645943,-500.0,0.00018356,2]
[342227328,1731600645953,-731.0,0.00018356,2]
[342227329,1731600645964,-500.0,0.00018356,2]
[342227330,1731600645973,-500.0,0.00018356,2]
[342227331,1731600645984,-2790.79,0.00018356,2]
[342227332,1731600645994,-500.0,0.00018356,2]
[342227333,1731600646004,-500.0,0.00018356,2]
[342227334,1731600646014,-2082.9,0.00018356,2]
[342227335,1731600646024,-1188.51,0.00018356,2]
[342227336,1731600646034,-500.0,0.00018356,2]
[342227337,1731600646045,-617.01,0.00018356,2]
[342227338,1731600646055,-588.65,0.00018356,2]
[342227339,1731600646065,-539.72,0.00018356,2]
[342227340,1731600646075,-3464.23,0.00018356,2]
[342227341,1731600646084,-580.934609,0.00018356,2]
[342227342,1731600646094,-707.17,0.00018356,2]
[342227343,1731600646103,-580.934609,0.00018356,2]
[342227344,1731600646113,-500.0,0.00018356,2]
[342227345,1731600646126,-809.9,0.00018356,2]
[342227346,1731600646135,-355.51109525,0.00018356,2]
[342227347,1731600646145,-500.0,0.00018356,2]
[342227348,1731600646154,-6092.17,0.00018356,2]
[342227349,1731600646163,-500.54,0.00018356,2]
[342227350,1731600646173,-614.62,0.00018356,2]
[342227351,1731600646182,-4200.34,0.00018356,2]
[342227352,1731600646192,-500.0,0.00018356,2]
[342227353,1731600646202,-236.94456808,0.00018356,2]
[342227354,1731600646211,-622.48,0.00018356,2]
[342227355,1731600646221,-500.0,0.00018356,2]
[342227356,1731600646231,-500.0,0.00018356,2]
[342227357,1731600646241,-676.2,0.00018356,2]
[342227358,1731600646250,-500.0,0.00018356,2]
[342227359,1731600646260,-151.0,0.00018356,2]
[342227360,1731600646270,-500.0,0.00018356,2]
[342227361,1731600646280,-539.4,0.00018356,2]
[342227362,1731600646289,-758.82,0.00018356,2]
[342227363,1731600646299,-4851.72,0.00018356,2]
[342227364,1731600646309,-587.0,0.00018473,2]
[342227365,1731600646318,-151.805,0.00018499,2]
[342227366,1731600646328,-542.001,0.00018499,2]
[342227367,1731600646337,-152.14,0.00018499,2]
[342227368,1731600646347,-2388.0,0.00018499,2]
[342227369,1731600646356,-1113.0,0.00018499,2]
[342227370,1731600646366,-2000.000001,0.000185,2]
[342227371,1731600646379,-662.667239,0.000185,2]
[342227372,1731600646389,-151.0,0.000185,2]
[342227373,1731600646399,-151.0,0.000185,2]
[342227374,1731600646408,-999.999999,0.0001852,2]
[342227375,1731600646418,-1427.15521856,0.00018609,2]
[342227376,1731600646427,-151.0,0.0001863,2]
[342227377,1731600646436,-151.0,0.0001863,2]
[342227378,1731600646446,-153.797871,0.0001863,2]
[342227379,1731600646455,-151.0,0.0001863,2]
[342227380,1731600646465,-502.38011166,0.0001863,2]
[342227381,1731600646475,-526.71,0.0001863,2]
[342227382,1731600646484,-500.0,0.0001863,2]
[342227383,1731600646493,-528.95,0.0001863,2]
[342227384,1731600646503,-500.0,0.0001863,2]
[342227385,1731600646513,-518.52,0.0001863,2]
[342227386,1731600646522,-151.0,0.0001863,2]
[342227387,1731600646532,-151.0,0.0001863,2]
[342227388,1731600646541,-500.0,0.0001863,2]
[342227389,1731600646551,-500.0,0.0001863,2]
[342227390,1731600646560,-573.49854343,0.0001863,2]
[342227391,1731600646570,-500.0,0.0001863,2]
[342227392,1731600646579,-504.45,0.0001863,2]
[342227393,1731600646594,-519.99,0.0001863,2]
[342227394,1731600646603,-524.78,0.0001863,2]
[342227395,1731600646613,-514.28,0.0001863,2]
[342227396,1731600646627,-723.1621,0.0001863,2]
[342227397,1731600646636,-723.1621,0.0001863,2]
[342227398,1731600646646,-500.0,0.0001863,2]
[342227399,1731600646655,-600.82,0.0001863,2]
[342227400,1731600646664,-553.76,0.0001863,2]
[342227401,1731600646675,-500.0,0.0001863,2]
[342227402,1731600646685,-727.47,0.0001863,2]
[342227403,1731600646694,-500.0,0.0001863,2]
[342227404,1731600646704,-500.0,0.0001863,2]
[342227405,1731600646714,-500.0,0.0001863,2]
[342227406,1731600646723,-500.0,0.0001863,2]
[342227407,1731600646733,-530.09,0.0001863,2]
[342227408,1731600646743,-500.0,0.0001863,2]
[342227409,1731600646753,-422.65555788,0.0001863,2]
[342227410,1731600646764,-500.0,0.0001863,2]
[342227411,1731600646774,-500.0,0.0001863,2]
[342227412,1731600646784,-151.0,0.0001863,2]
[342227413,1731600646793,-484.85511179,0.0001863,2]
[342227414,1731600646803,-151.0,0.0001863,2]
[342227415,1731600646813,-644.96274973,0.0001863,2]
[342227416,1731600646822,-584.2,0.0001863,2]
[342227417,1731600646831,-500.0,0.0001863,2]
[342227418,1731600646842,-486.74139076,0.0001863,2]
[342227419,1731600646851,-534.43,0.0001863,2]
[342227420,1731600646861,-1550.66,0.0001863,2]
[342227421,1731600646872,-500.0,0.0001863,2]
[342227422,1731600646883,-581.14,0.0001863,2]
[342227423,1731600646893,-555.67,0.0001863,2]
[342227424,1731600646904,-500.05,0.0001863,2]
[342227425,1731600646914,-718.72,0.0001863,2]
[342227426,1731600646924,-561.8034228,0.0001863,2]
[342227427,1731600646934,-707.27,0.0001863,2]
[342227429,1731600646944,-621.51,0.0001863,2]
[342227431,1731600646954,-1248.9,0.0001863,2]
[342227433,1731600646964,-1228.06,0.0001863,2]
[342227434,1731600646973,-500.0,0.0001863,2]
[342227435,1731600646983,-618.02,0.0001863,2]
[342227436,1731600646994,-500.0,0.0001863,2]
[342227437,1731600647005,-452.23470971,0.0001863,2]
[342227438,1731600647015,-500.0,0.0001863,2]
[342227440,1731600647025,-1051.3,0.0001863,2]
[342227442,1731600647034,-726.33,0.0001863,2]
[342227443,1731600647044,-2380.240832,0.0001863,2]
[342227445,1731600647054,-2380.240832,0.0001863,2]
[342227446,1731600647063,-869.66,0.0001863,2]
[342227448,1731600647073,-1536.98,0.0001863,2]
[342227450,1731600647083,-392.887161,0.0001863,2]
[342227451,1731600647094,-615.03,0.0001863,2]
[342227453,1731600647103,-392.887161,0.0001863,2]
[342227455,1731600647114,-691.63,0.0001863,2]
[342227456,1731600647129,-6820.13,0.0001863,2]
[342227457,1731600647138,-500.0,0.0001863,2]
[342227458,1731600647148,-558.93,0.0001863,2]
[342227459,1731600647158,-551.7,0.0001863,2]
[342227460,1731600647168,-500.0,0.0001863,2]
[342227461,1731600647178,-18922.5,0.0001863,2]
[342227462,1731600647188,-500.0,0.0001863,2]
[342227463,1731600647198,-151.0,0.0001863,2]
[342227464,1731600647208,-500.0,0.0001863,2]
[342227465,1731600647218,-500.0,0.0001863,2]
[342227466,1731600647227,-151.0,0.0001863,2]
[342227467,1731600647237,-1302.21,0.0001863,2]
[342227468,1731600647247,-383.978521,0.0001863,2]
[342227469,1731600647257,-383.978521,0.0001863,2]
[342227470,1731600647266,-605.56,0.0001863,2]
[342227471,1731600647276,-1546.17,0.0001863,2]
[342227472,1731600647286,-321.499132,0.0001863,2]
[342227473,1731600647296,-321.499132,0.0001863,2]
[342227474,1731600647305,-1291.87,0.0001863,2]
[342227475,1731600647315,-500.0,0.0001863,2]
[342227476,1731600647325,-500.0,0.0001863,2]
[342227477,1731600647334,-151.0,0.0001863,2]
[342227478,1731600647344,-576.85,0.0001863,2]
[342227479,1731600647354,-714.42,0.0001863,2]
[342227480,1731600647364,-688.63,0.0001863,2]
[342227481,1731600647377,-729.16,0.0001863,2]
[342227482,1731600647387,-823.71,0.0001863,2]
[342227483,1731600647396,-560.55,0.0001863,2]
[342227484,1731600647407,-500.0,0.0001863,2]
[342227485,1731600647417,-731.0,0.0001863,2]
[342227486,1731600647427,-500.0,0.0001863,2]
[342227487,1731600647437,-500.0,0.0001863,2]
[342227488,1731600647447,-2790.79,0.0001863,2]
[342227489,1731600647457,-500.0,0.0001863,2]
[342227490,1731600647466,-500.0,0.0001863,2]
[342227491,1731600647476,-2082.9,0.0001863,2]
[342227492,1731600647486,-1188.51,0.0001863,2]
[342227493,1731600647496,-347.04423514,0.0001863,2]
[342227494,1731600647507,-152.487933,0.0001863,2]
[342227495,1731600647516,-170.026749,0.0001863,2]
[342227496,1731600647527,-617.01,0.0001863,2]
[342227497,1731600647537,-539.72,0.0001863,2]
[342227498,1731600647547,-3464.23,0.0001863,2]
[342227499,1731600647557,-539.004771,0.0001863,2]
[342227500,1731600647567,-580.934609,0.0001863,2]
[342227501,1731600647577,-588.65,0.0001863,2]
[342227502,1731600647589,-707.17,0.0001863,2]
[342227503,1731600647600,-539.004771,0.0001863,2]
[342227504,1731600647609,-580.934609,0.0001863,2]
[342227505,1731600647621,-500.0,0.0001863,2]
[342227506,1731600647633,-809.9,0.0001863,2]
[342227507,1731600647644,-151.0,0.0001863,2]
[342227508,1731600647654,-1269.298562,0.0001863,2]
[342227509,1731600647665,-6092.17,0.0001863,2]
[342227510,1731600647676,-500.54,0.0001863,2]
[342227511,1731600647686,-1269.298562,0.0001863,2]
[342227512,1731600647696,-614.62,0.0001863,2]
[342227513,1731600647706,-500.0,0.0001863,2]
[342227514,1731600647716,-4200.34,0.0001863,2]
[342227515,1731600647726,-475.07321834,0.0001863,2]
[342227516,1731600647735,-622.48,0.0001863,2]
[342227517,1731600647745,-500.0,0.0001863,2]
[342227518,1731600647755,-500.0,0.0001863,2]
[342227519,1731600647765,-676.2,0.0001863,2]
[342227520,1731600647775,-500.0,0.0001863,2]
[342227521,1731600647785,-500.0,0.0001863,2]
[342227522,1731600647795,-539.4,0.0001863,2]
[342227523,1731600647806,-758.82,0.0001863,2]
[342227524,1731600647819,-4851.72,0.0001863,2]
[342227525,1731600647829,-752.400114,0.00018645,2]
[342227526,1731600647839,-587.0,0.00018678,2]
[342227527,1731600647849,-5306.64863562,0.000187,2]